bitfinex-derivatives/quotes_SOLF0:USTF0_20241127
["timestamp","ask_amount","ask_price","bid_price","bid_amount"]
[1732750946847,2.0572,242.79,242.76,2.24]
[1732750947347,2.0573,242.79,242.76,2.24]
[1732750948552,9.82098335,242.89,242.76,2.24]
[1732750948758,9.82098335,242.89,242.77,2.24]
[1732750948956,9.82098335,242.89,242.72,9.82098335]
[1732750949250,1.2224,242.9,242.73,2.24]
[1732750949251,9.82098335,242.86,242.73,2.24]
[1732750949648,2.0573,242.78,242.73,2.24]
[1732750950247,2.0574,242.77,242.73,4.2977]
[1732750951049,1.2224,242.9,242.75,9.82098335]
[1732750951455,2.0569,242.83,242.79,2.0572]
[1732750951651,2.0569,242.83,242.8,2.24]
[1732750953255,1.2965,242.91,242.81,9.82098335]
[1732750954155,1.2965,242.91,242.68,1.2129]
[1732750954355,1.2965,242.91,242.78,2.0572]
[1732750954564,1.2965,242.91,242.79,2.24]
[1732750955066,1.2965,242.91,242.79,4.2972]
[1732750955266,1.2965,242.91,242.79,2.24]
[1732750955466,1.2965,242.91,242.8,9.82098335]
[1732750955866,2.0567,242.85,242.81,2.057]
[1732750956066,1.2965,242.91,242.8,9.82098335]
[1732750956265,1.2965,242.91,242.66,32.12]
[1732750956266,9.82098335,242.86,242.66,32.12]
[1732750956465,2.0575,242.76,242.71,2.0578]
[1732750956662,2.0575,242.76,242.72,2.24]
[1732750957167,2.0574,242.77,242.72,2.24]
[1732750957473,1.2623,242.85,242.72,2.24]
[1732750957971,1.2623,242.85,242.73,2.0576]
[1732750959463,2.0573,242.79,242.73,2.0576]
[1732750959669,1.2623,242.85,242.73,11.87868335]
[1732750960268,1.2623,242.85,242.73,9.82098335]
[1732750960670,11.08328335,242.85,242.72,2.24]
[1732750960873,1.2418,242.84,242.72,2.24]
[1732750961277,2.0573,242.78,242.73,2.0577]
[1732750961473,1.2418,242.84,242.73,2.0577]
[1732750962181,1.2418,242.84,242.75,9.82098335]
[1732750962467,1.2418,242.84,242.74,2.0576]
[1732750962468,1.2623,242.85,242.78,9.82098335]
[1732750962670,53.04770062,242.9,242.79,2.24]
[1732750962867,53.04770062,242.9,242.81,9.82098335]
[1732750963775,2.0567,242.85,242.81,9.82098335]
[1732750963976,286.12299187,243.07,242.84,11.87768335]
[1732750964271,2.4215,242.98,242.85,2.24]
[1732750964573,14.48248335,242.98,242.85,2.24]
[1732750964965,2.4215,242.98,242.87,9.82098335]
[1732750966272,2.0563,242.9,242.87,9.82098335]
[1732750966470,12.24248335,242.98,242.84,2.24]
[1732750966975,12.24248335,242.98,242.84,12.06098335]
[1732750967369,2.0565,242.88,242.84,12.06098335]
[1732750969071,2.4215,242.98,242.84,12.06098335]
[1732750969479,12.24248335,242.98,242.84,9.82098335]
[1732750969777,2.4215,242.98,242.87,9.82098335]
[1732750969978,2.4215,242.98,242.88,2.24]
[1732750970174,2.0563,242.9,242.88,2.24]
[1732750971667,2.0561,242.92,242.88,2.24]
[1732750972075,2.4215,242.98,242.88,2.24]
[1732750972275,9.82098335,242.97,242.83,9.82098335]
[1732750972776,2.4215,242.98,242.86,9.82098335]
[1732750973475,2.0562,242.91,242.86,9.82098335]
[1732750973681,2.4215,242.98,242.86,9.82098335]
[1732750973974,2.0561,242.93,242.86,11.87748335]
[1732750974180,2.4215,242.98,242.86,11.87748335]
[1732750974380,2.4215,242.98,242.86,9.82098335]
[1732750975069,1.2775,243.06,242.95,9.82098335]
[1732750976076,2.0555,242.99,242.95,9.82098335]
[1732750976273,1.2775,243.06,242.94,2.24]
[1732750977375,9.82098335,243.04,242.92,2.24]
[1732750977581,9.82098335,243.03,242.92,2.24]
[1732750978584,2.056,242.93,242.92,2.24]
[1732750978978,9.82098335,242.97,242.84,2.24]
[1732750979180,2.0566,242.86,242.82,12.06098335]
[1732750979378,1.2251,242.96,242.82,9.82098335]
[1732750979571,1.2251,242.96,242.83,2.24]
[1732750979572,2.0561,242.93,242.83,2.24]
[1732750979777,2.4113,242.96,242.83,2.24]
[1732750979980,2.4113,242.96,242.85,9.82098335]
[1732750980179,2.0562,242.91,242.86,2.0566]
[1732750980382,2.4113,242.96,242.85,9.82098335]
[1732750980684,9.82098335,243.0,242.85,9.82098335]
[1732750980883,2.3722,242.99,242.85,9.82098335]
[1732750981185,9.82098335,242.97,242.83,2.24]
[1732750981373,9.82098335,242.94,242.83,2.24]
[1732750981579,2.24,242.96,242.83,2.24]
[1732750981875,2.0564,242.89,242.83,4.2968]
[1732750982072,2.3722,242.99,242.85,9.82098335]
[1732750982073,4.6122,242.99,242.85,9.82098335]
[1732750982280,2.0563,242.9,242.85,9.82098335]
[1732750982580,4.6122,242.99,242.85,9.82098335]
[1732750982774,2.0562,242.91,242.85,11.87768335]
[1732750982975,2.3722,242.99,242.88,9.82098335]
[1732750983175,12.06098335,243.03,242.89,2.24]
[1732750983677,4.1077,243.19,242.95,9.82098335]
[1732750983883,12.31698335,243.13,242.98,9.82098335]
[1732750984088,12.31698335,243.13,242.99,2.24]
[1732750984089,2.0554,243.0,242.99,2.24]
[1732750984781,2.0554,243.0,242.95,9.82098335]
[1732750984988,2.496,243.13,242.96,2.24]
[1732750984989,9.82098335,243.07,242.96,2.24]
[1732750985174,298.47299187,243.25,242.98,9.82098335]
[1732750985375,11.04128335,243.18,243.01,9.82098335]
[1732750985682,2.0548,243.07,243.02,2.24]
[1732750986080,2.0548,243.07,243.01,9.82098335]
[1732750986284,2.0548,243.07,243.03,2.24]
[1732750986586,2.0548,243.08,243.01,11.87628335]
[1732750986787,2.0548,243.08,243.04,2.24]
[1732750986989,11.04128335,243.18,243.04,2.24]
[1732750987193,11.04128335,243.18,242.9,2.5202]
[1732750987480,11.04128335,243.18,243.0,9.82098335]
[1732750987681,11.04128335,243.18,243.01,2.24]
[1732750987887,9.82098335,243.14,243.02,2.24]
[1732750988181,9.82098335,243.14,243.03,2.24]
[1732750988387,1.2268,243.13,243.03,2.24]
[1732750989088,2.0551,243.04,243.03,2.24]
[1732750989786,1.2268,243.13,243.03,2.24]
[1732750989994,2.055,243.06,243.03,2.24]
[1732750990185,1.2268,243.13,243.03,2.24]
[1732750990683,2.055,243.05,243.03,2.24]
[1732750991192,1.2268,243.13,243.0,2.24]
[1732750991193,9.82098335,243.11,243.0,2.24]
[1732750991394,1.3161,243.12,243.0,2.24]
[1732750992386,1.3161,243.12,243.01,9.82098335]
[1732750992783,290.22769187,243.37,243.11,9.82098335]
[1732750992989,2.0541,243.16,243.12,2.24]
[1732750993393,2.6062,243.27,243.12,2.24]
[1732750993394,11.02268335,243.26,243.12,2.24]
[1732750994092,2.054,243.17,243.12,2.24]
[1732750994288,1.2017,243.26,243.11,9.82098335]
[1732750994488,1.2017,243.26,243.13,2.24]
[1732750994793,2.0539,243.18,243.13,2.24]
[1732750994994,1.2017,243.26,243.13,2.24]
[1732750995984,1.2017,243.26,243.14,9.82098335]
[1732750996694,2.0539,243.18,243.14,9.82098335]
[1732750996897,1.2017,243.26,243.14,9.82098335]
[1732750997292,2.0535,243.23,243.14,9.82098335]
[1732750997489,1.2017,243.26,243.14,9.82098335]
[1732750997891,2.054,243.17,243.14,9.82098335]
[1732750998291,65.02570663,243.3,243.01,2.4871]
[1732750998292,9.82098335,243.38,243.01,7.009899]
[1732750998494,9.82098335,243.34,243.15,9.82098335]
[1732750998692,2.053,243.29,243.16,4.354]
[1732750998996,9.82098335,243.34,243.19,9.82098335]
[1732750999699,4.8734,243.35,243.19,9.82098335]
[1732750999894,2.0532,243.26,243.2,2.0537]
[1732751000096,4.8734,243.35,243.19,9.82098335]
[1732751000489,4.8734,243.35,243.22,9.82098335]
[1732751000797,2.5734,243.35,243.22,12.12098335]
[1732751001001,2.5734,243.35,243.25,9.82098335]
[1732751001795,1.2423,243.37,243.25,9.82098335]
[1732751002095,1.2423,243.37,243.27,2.0531]
[1732751002292,1.2423,243.37,243.28,12.12098335]
[1732751002486,2.0526,243.34,243.28,12.12098335]
[1732751002688,13.40438335,243.44,243.29,2.0529]
[1732751003097,2.0524,243.36,243.29,2.0529]
[1732751003293,13.40438335,243.44,243.28,12.12098335]
[1732751003495,9.82098335,243.38,243.15,1.2403]
[1732751003700,12.12098335,243.38,243.22,9.82098335]
[1732751003900,12.12098335,243.38,243.23,2.3]
[1732751004294,3.5834,243.44,243.31,9.82098335]
[1732751004798,2.0524,243.35,243.31,9.82098335]
[1732751005893,2.0526,243.33,243.3,2.3]
[1732751006099,9.82098335,243.43,243.3,2.3]
[1732751006296,3.5834,243.44,243.3,2.3]
[1732751006495,2.052,243.4,243.3,2.3]
[1732751006691,3.5834,243.44,243.3,2.3]
[1732751008801,9.82098335,243.42,243.3,2.3]
[1732751009098,9.82098335,243.42,243.28,9.82098335]
[1732751010097,9.82098335,243.39,243.22,12.12098335]
[1732751010303,2.3,243.38,243.22,12.12098335]
[1732751010504,2.3,243.38,243.25,9.82098335]
[1732751011092,2.0525,243.35,243.25,9.82098335]
[1732751011295,2.3,243.38,243.25,9.82098335]
[1732751012100,2.3,243.4,243.28,9.82098335]
[1732751012806,2.3,243.43,243.31,9.82098335]
[1732751013302,2.0521,243.4,243.31,9.82098335]
[1732751013598,2.3,243.43,243.31,9.82098335]
[1732751013999,2.0525,243.35,243.31,9.82098335]
[1732751014194,2.3,243.43,243.31,9.82098335]
[1732751014400,1.2834,243.44,243.31,9.82098335]
[1732751015002,2.0524,243.36,243.31,9.82098335]
[1732751015596,2.0524,243.36,243.3,2.3]
[1732751015801,2.0524,243.36,243.32,9.82098335]
[1732751018503,1.2834,243.44,243.32,9.82098335]
[1732751019108,1.2834,243.44,243.32,12.12098335]
[1732751020100,9.82098335,243.42,243.26,9.82098335]
[1732751020305,9.82098335,243.42,243.16,2.08683104]
[1732751020306,2.3,243.41,243.25,12.12098335]
[1732751021204,9.82098335,243.42,243.28,9.82098335]
[1732751021205,2.3,243.42,243.28,9.82098335]
[1732751021609,2.0527,243.33,243.28,9.82098335]
[1732751022008,2.3,243.42,243.28,9.82098335]
[1732751022210,2.0527,243.32,243.28,9.82098335]
[1732751022409,2.3,243.42,243.28,9.82098335]
[1732751022607,2.0524,243.35,243.31,9.82098335]
[1732751022811,3.5834,243.44,243.31,12.12098335]
[1732751023212,2.0526,243.34,243.31,12.12098335]
[1732751023611,3.5834,243.44,243.31,12.12098335]
[1732751024116,2.0526,243.34,243.31,2.3]
[1732751024317,2.0526,243.34,243.33,6.22236749]
[1732751024514,6.22236749,243.42,243.33,6.22236749]
[1732751025213,2.0525,243.34,243.33,6.22236749]
[1732751026511,1.2834,243.44,243.33,6.22236749]
[1732751026709,1.2834,243.44,243.38,6.22236749]
[1732751027318,2.0521,243.39,243.38,6.22236749]
[1732751027814,1.2834,243.44,243.31,2.3]
[1732751028016,7.50576749,243.44,243.36,6.22236749]
[1732751028218,1.2834,243.44,243.38,6.22236749]
[1732751028618,2.0521,243.39,243.38,6.22236749]
[1732751028919,4.1025,243.5,243.38,6.22236749]
[1732751028920,6.22236749,243.48,243.38,6.22236749]
[1732751029214,6.22236749,243.48,243.4,6.22236749]
[1732751029420,2.0519,243.41,243.4,6.22236749]
[1732751031111,36.50063494,243.51,243.4,6.22236749]
[1732751031318,6.22236749,243.51,243.44,6.22236749]
[1732751031520,6.22236749,243.49,243.39,2.24]
[1732751031717,6.22236749,243.49,243.41,6.22236749]
[1732751031919,2.0519,243.42,243.41,6.22236749]
[1732751032513,2.24,243.56,243.41,6.22236749]
[1732751032718,2.0519,243.42,243.41,6.22236749]
[1732751032912,6.5543,243.58,243.41,6.22236749]
[1732751033115,2.0514,243.48,243.47,6.22236749]
[1732751036125,2.0513,243.49,243.47,6.22236749]
[1732751036327,2.0513,243.49,243.48,6.22236749]
[1732751039727,6.22236749,243.54,243.37,2.0522]
[1732751039926,6.22236749,243.54,243.45,6.22236749]
[1732751040324,6.22236749,243.54,243.47,6.22236749]
[1732751041133,6.22236749,243.54,243.41,2.24]
[1732751041337,6.22236749,243.54,243.46,6.22236749]
[1732751041638,6.5543,243.58,243.48,6.22236749]
[1732751041827,6.22236749,243.56,243.48,6.22236749]
[1732751042226,2.0513,243.49,243.48,6.22236749]
[1732751042426,6.22236749,243.56,243.41,2.24]
[1732751042633,2.0513,243.49,243.41,2.24]
[1732751042828,6.22236749,243.54,243.41,2.24]
[1732751043131,6.22236749,243.54,243.45,6.22236749]
[1732751043532,2.0515,243.46,243.45,6.22236749]
[1732751043728,6.5543,243.58,243.39,2.24]
[1732751043729,6.22236749,243.5,243.39,2.24]
[1732751043932,2.0512,243.5,243.45,6.22236749]
[1732751044230,26.17552855,243.52,243.45,6.22236749]
[1732751044427,26.17552855,243.52,243.43,6.22236749]
[1732751046030,2.0517,243.44,243.43,6.22236749]
[1732751046623,2.0512,243.5,243.39,2.0521]
[1732751046823,6.22236749,243.49,243.41,6.22236749]
[1732751047228,2.0515,243.47,243.41,6.22236749]
[1732751047433,6.22236749,243.51,243.43,6.22236749]
[1732751048930,2.0517,243.44,243.43,6.22236749]
[1732751049431,19.95316106,243.52,243.43,6.22236749]
[1732751049633,19.95316106,243.52,243.46,6.22236749]
[1732751050537,19.95316106,243.52,243.48,6.22236749]
[1732751051028,2.0513,243.49,243.48,6.22236749]
[1732751052822,19.95316106,243.52,243.48,6.22236749]
[1732751053535,2.0513,243.49,243.48,6.22236749]
[1732751054336,19.95316106,243.52,243.48,6.22236749]
[1732751054530,19.95316106,243.52,243.45,2.24]
[1732751054735,2.0514,243.47,243.45,8.46236749]
[1732751055435,2.0515,243.46,243.45,8.46236749]
[1732751057835,6.22236749,243.5,243.29,6.53635105]
[1732751058031,6.22236749,243.5,243.31,1.2639]
[1732751058230,6.22236749,243.5,243.41,6.22236749]
[1732751058831,6.22236749,243.5,243.38,2.24]
[1732751058832,22.19316106,243.52,243.43,6.22236749]
[1732751059030,6.22236749,243.51,243.43,6.22236749]
[1732751059232,6.22236749,243.49,243.38,2.24]
[1732751059432,6.22236749,243.49,243.41,6.22236749]
[1732751059730,22.19316106,243.52,243.41,6.22236749]
[1732751059731,2.0519,243.42,243.41,6.22236749]
[1732751060533,22.19316106,243.52,243.41,6.22236749]
[1732751060731,2.0517,243.44,243.38,2.24]
[1732751060933,22.19316106,243.52,243.38,2.24]
[1732751061330,2.0518,243.43,243.39,2.0521]
[1732751061536,2.0518,243.43,243.38,2.24]
[1732751062936,2.0518,243.43,243.4,2.052]
[1732751063145,2.0518,243.43,243.42,6.22236749]
[1732751063930,6.22236749,243.51,243.38,2.24]
[1732751064138,2.0521,243.39,243.38,2.24]
[1732751064439,2.0521,243.39,243.38,8.46236749]
[1732751066837,2.0521,243.39,243.38,6.22236749]
[1732751067039,24.05526106,243.52,243.29,2.24]
[1732751067040,6.22236749,243.41,243.29,2.24]
[1732751067235,2.0527,243.33,243.29,4.2929]
[1732751067835,2.0527,243.32,243.22,2.5497]
[1732751068032,2.0527,243.32,243.23,2.24]
[1732751068232,6.22236749,243.41,243.23,2.24]
[1732751068442,2.0526,243.33,243.32,6.22236749]
[1732751069029,6.22236749,243.39,243.2,2.84413846]
[1732751069030,6.22236749,243.37,243.2,2.84413846]
[1732751069230,2.24,243.39,243.27,6.22236749]
[1732751069231,6.22236749,243.35,243.27,6.22236749]
[1732751069432,1.2678,243.34,243.27,6.22236749]
[1732751069830,2.053,243.28,243.27,6.22236749]
[1732751070031,1.2678,243.34,243.13,1.1857]
[1732751070239,2.053,243.28,243.21,6.22236749]
[1732751070438,6.22236749,243.29,243.21,6.22236749]
[1732751071237,6.22236749,243.29,243.18,2.24]
[1732751071539,6.22236749,243.31,243.23,6.22236749]
[1732751071938,2.0532,243.27,243.21,6.22236749]
[1732751072139,11.97323675,243.33,243.18,2.24]
[1732751072538,2.0535,243.23,243.18,2.24]
[1732751072733,11.97323675,243.33,243.18,2.24]
[1732751072936,2.0535,243.22,243.18,2.24]
[1732751074240,11.97323675,243.33,243.18,2.24]
[1732751074540,2.0536,243.21,243.18,2.24]
[1732751075145,1.2678,243.34,243.2,9.73323675]
[1732751075341,1.2678,243.34,243.23,9.73323675]
[1732751076453,1.2678,243.34,243.18,2.24]
[1732751076454,9.73323675,243.3,243.18,2.24]
[1732751076635,2.0532,243.27,243.18,2.24]
[1732751076839,11.97323675,243.3,243.18,2.24]
[1732751077349,2.0535,243.23,243.18,2.24]
[1732751078145,11.97323675,243.3,243.18,2.24]
[1732751078547,11.97323675,243.3,243.16,9.73323675]
[1732751078845,11.97323675,243.3,243.16,11.97323675]
[1732751079045,2.0536,243.22,243.16,14.02723675]
[1732751079640,11.97323675,243.3,243.16,14.02723675]
[1732751079840,2.0536,243.21,243.16,14.02723675]
[1732751080240,11.97323675,243.3,243.12,55.98258225]
[1732751080241,2.0541,243.16,243.12,55.98258225]
[1732751080438,9.73323675,243.27,243.14,2.24]
[1732751080740,2.4185,243.26,243.14,2.24]
[1732751081254,1.2875,243.25,243.14,2.24]
[1732751081648,2.0539,243.18,243.12,60.27688225]
[1732751082445,2.054,243.17,243.13,9.73323675]
[1732751083245,1.2875,243.25,243.13,9.73323675]
[1732751083548,2.0541,243.16,243.13,9.73323675]
[1732751083749,2.0541,243.16,243.12,60.27688225]
[1732751084044,1.2875,243.25,243.05,11.97323675]
[1732751084045,2.0545,243.11,243.05,11.97323675]
[1732751084238,9.73323675,243.21,243.05,11.97323675]
[1732751084746,2.0547,243.09,243.05,11.97323675]
[1732751084945,9.73323675,243.21,243.05,11.97323675]
[1732751085140,2.054,243.17,243.06,2.0549]
[1732751085345,9.73323675,243.21,243.05,9.73323675]
[1732751085543,2.24,243.24,243.05,11.97323675]
[1732751085846,9.73323675,243.21,243.05,11.97323675]
[1732751087446,9.73323675,243.18,243.05,2.24]
[1732751087653,9.73323675,243.15,243.01,9.73323675]
[1732751087848,9.73323675,243.15,242.96,38.63062409]
[1732751087849,2.0552,243.03,242.98,9.73323675]
[1732751088451,2.0552,243.03,242.98,11.78883675]
[1732751088753,2.0553,243.01,242.98,9.73323675]
[1732751089453,11.97323675,243.12,242.98,9.73323675]
[1732751089454,2.0552,243.03,242.98,9.73323675]
[1732751089647,11.97323675,243.12,242.98,9.73323675]
[1732751090447,2.0548,243.08,242.96,38.63062409]
[1732751090660,11.97323675,243.12,242.97,2.24]
[1732751090661,9.73323675,243.09,242.97,2.24]
[1732751091759,2.0551,243.04,242.99,9.73323675]
[1732751092158,9.99424106,243.14,243.03,6.23644106]
[1732751092356,2.0547,243.08,243.06,6.23644106]
[1732751093258,9.99424106,243.14,243.06,6.23644106]
[1732751093462,2.24,243.2,243.08,6.23644106]
[1732751093756,6.23644106,243.17,243.08,6.23644106]
[1732751093961,2.0546,243.1,243.08,6.23644106]
[1732751094155,2.0546,243.1,243.05,2.0549]
[1732751094351,11.00538919,243.19,243.05,2.0549]
[1732751095158,11.00538919,243.19,243.03,11.98338919]
[1732751095463,9.74338919,243.12,242.99,2.24]
[1732751095761,2.4785,243.11,242.99,2.24]
[1732751096162,2.0551,243.05,242.99,4.2954]
[1732751096357,2.4785,243.11,242.99,4.2954]
[1732751096763,2.0548,243.08,242.99,4.2954]
[1732751096957,2.4785,243.11,242.99,4.2954]
[1732751097358,2.055,243.05,243.0,2.0554]
[1732751097558,2.24,243.17,243.01,9.74338919]
[1732751097759,2.0547,243.08,243.04,2.0551]
[1732751097965,2.0547,243.08,243.01,9.74338919]
[1732751098462,2.0547,243.08,243.03,2.0551]
[1732751099063,2.0548,243.07,243.03,2.0551]
[1732751100963,2.4785,243.18,243.04,9.74338919]
[1732751101170,2.4785,243.18,243.05,2.24]
[1732751101459,2.0548,243.08,243.05,2.24]
[1732751101759,9.74338919,243.17,243.03,2.24]
[1732751101964,2.0551,243.03,243.02,2.24]
[1732751102263,9.74338919,243.14,243.0,2.24]
[1732751102467,2.0548,243.08,243.03,2.0551]
[1732751102661,2.24,243.16,243.01,9.74338919]
[1732751103262,9.74338919,243.14,243.0,2.24]
[1732751103567,9.74338919,243.11,243.0,2.24]
[1732751103757,9.74338919,243.05,242.91,2.24]
[1732751103961,9.74338919,243.02,242.9,2.24]
[1732751104164,2.0561,242.93,242.89,2.24]
[1732751104368,9.74338919,243.02,242.89,2.24]
[1732751104762,11.98338919,243.08,242.91,9.74338919]
[1732751105263,11.98338919,243.08,242.94,9.74338919]
[1732751105565,11.98338919,243.08,242.95,2.24]
[1732751106065,2.0559,242.95,242.91,2.24]
[1732751106568,2.24,243.08,242.94,9.74338919]
[1732751107171,2.0551,243.04,242.94,9.74338919]
[1732751107371,2.24,243.08,242.94,9.74338919]
[1732751107765,9.74338919,243.07,242.91,11.98338919]
[1732751107965,2.24,243.08,242.91,11.98338919]
[1732751108164,9.74338919,243.07,242.91,11.98338919]
[1732751108568,9.74338919,243.04,242.83,1.1973]
[1732751108766,2.0559,242.94,242.88,2.0564]
[1732751108966,9.74338919,242.98,242.84,2.24]
[1732751109171,9.74338919,242.95,242.84,2.24]
[1732751109467,3.669,242.97,242.8,2.24]
[1732751109468,2.0567,242.85,242.8,2.24]
[1732751109862,2.0568,242.84,242.8,2.24]
[1732751110475,9.74338919,242.96,242.8,2.24]
[1732751110768,2.0569,242.83,242.8,2.24]
[1732751110965,2.0569,242.83,242.78,9.74338919]
[1732751111174,9.74338919,242.9,242.75,2.24]
[1732751111473,9.74338919,242.9,242.75,11.98338919]
[1732751111670,2.0567,242.85,242.79,2.0572]
[1732751112069,9.74338919,242.96,242.78,9.74338919]
[1732751112270,2.24,242.95,242.81,9.74338919]
[1732751112471,2.24,242.95,242.81,11.98338919]
[1732751112670,2.0569,242.83,242.81,2.24]
[1732751113066,2.0569,242.83,242.77,2.24]
[1732751113274,2.24,242.95,242.77,2.24]
[1732751113474,2.24,242.95,242.8,9.74338919]
[1732751114274,9.74338919,242.89,242.77,2.24]
[1732751114670,2.0572,242.79,242.73,9.74338919]
[1732751114871,12.35,243.03,242.76,9.74338919]
[1732751115077,2.4261,242.99,242.83,9.74338919]
[1732751115279,2.4261,242.99,242.84,2.24]
[1732751115574,2.4261,242.99,242.87,9.74338919]
[1732751116577,2.4261,242.99,242.83,9.74338919]
[1732751116779,9.74338919,242.97,242.8,9.74338919]
[1732751116976,9.74338919,242.97,242.81,6.70159329]
[1732751117180,9.74338919,242.97,242.81,2.24]
[1732751118774,2.0566,242.86,242.81,2.24]
[1732751119380,2.0565,242.87,242.81,2.24]
[1732751120181,9.74338919,242.93,242.81,2.24]
[1732751120377,1.2689,242.92,242.81,2.24]
[1732751120680,1.2689,242.92,242.77,12.15928919]
[1732751120873,1.2689,242.92,242.78,2.24]
[1732751121981,2.0568,242.84,242.78,2.24]
[1732751122976,2.0568,242.83,242.78,2.24]
[1732751123682,9.74338919,242.9,242.74,9.74338919]
[1732751123877,9.74338919,242.9,242.71,1.2643]
[1732751123878,9.74338919,242.87,242.73,2.24]
[1732751124078,2.0569,242.83,242.73,2.24]
[1732751124281,2.24,242.86,242.71,11.00768919]
[1732751124581,2.0569,242.82,242.72,2.24]
[1732751124881,2.24,242.86,242.72,2.24]
[1732751125580,1.1985,242.89,242.78,9.74338919]
[1732751125781,2.0564,242.89,242.79,2.24]
[1732751125970,1.2689,242.92,242.81,9.74338919]
[1732751126373,2.24,242.94,242.81,9.74338919]
[1732751126575,2.24,242.94,242.82,2.0569]
[1732751126576,2.0564,242.88,242.82,2.0569]
[1732751127174,2.0565,242.87,242.81,9.74338919]
[1732751127376,2.24,242.94,242.81,9.74338919]
[1732751127978,2.24,242.94,242.81,11.80038919]
[1732751128974,2.24,242.94,242.79,2.24]
[1732751129480,1.2659,242.98,242.87,11.79978919]
[1732751129980,2.056,242.93,242.87,11.79978919]
[1732751130282,2.056,242.93,242.87,9.74338919]
[1732751130882,2.0561,242.92,242.87,11.79988919]
[1732751131480,2.0561,242.92,242.87,9.74338919]
[1732751132175,1.2659,242.98,242.87,9.74338919]
[1732751132380,2.0562,242.91,242.87,9.74338919]
[1732751132879,6.1628,243.14,242.9,9.74338919]
[1732751133080,9.74338919,243.07,242.9,9.74338919]
[1732751133584,2.0552,243.02,242.92,2.0561]
[1732751133785,9.74338919,243.07,242.92,4.2961]
[1732751134082,9.74338919,243.04,242.92,2.24]
[1732751134276,2.056,242.93,242.92,2.24]
[1732751134478,11.98338919,243.04,242.87,9.74338919]
[1732751134681,9.74338919,242.98,242.81,9.74338919]
[1732751134883,9.74338919,242.95,242.81,9.74338919]
[1732751135180,9.74338919,242.95,242.82,2.24]
[1732751135579,9.74338919,242.95,242.8,1.2748]
[1732751135778,2.057,242.81,242.8,2.24]
[1732751137075,11.98338919,242.92,242.8,2.24]
[1732751137076,2.0564,242.89,242.8,2.24]
[1732751137282,2.24,242.92,242.8,2.24]
[1732751137477,2.24,242.92,242.8,4.2971]
[1732751137682,2.0567,242.85,242.8,4.2971]
[1732751138082,2.0568,242.84,242.8,2.24]
[1732751138283,2.24,242.92,242.8,2.24]
[1732751138482,2.24,242.92,242.78,9.74338919]
[1732751138685,2.0573,242.78,242.76,2.24]
[1732751138890,9.74338919,242.9,242.76,2.24]
[1732751139890,2.0567,242.85,242.78,9.74338919]
[1732751140291,1.193,242.91,242.78,9.74338919]
[1732751140592,2.0566,242.86,242.8,2.0571]
[1732751140789,1.193,242.91,242.78,9.74338919]
[1732751140988,2.0568,242.84,242.78,11.80058919]
[1732751141489,2.0568,242.84,242.78,9.74338919]
[1732751141689,2.0568,242.84,242.79,2.0572]
[1732751142188,9.74338919,242.9,242.77,2.24]
[1732751142588,2.0573,242.78,242.77,2.24]
[1732751142990,9.74338919,242.87,242.77,2.24]
[1732751144489,9.74338919,242.87,242.73,9.74338919]
[1732751144695,1.2009,242.86,242.74,2.24]
[1732751144995,2.0569,242.83,242.74,2.24]
[1732751145289,3.4409,242.86,242.74,2.24]
[1732751145485,3.4409,242.86,242.73,9.74338919]
[1732751145691,2.0574,242.76,242.73,9.74338919]
[1732751146188,2.0574,242.77,242.73,9.74338919]
[1732751146592,4.6628,242.86,242.73,9.74338919]
[1732751146790,2.0572,242.79,242.73,11.80098919]
[1732751147294,2.0574,242.77,242.73,9.74338919]
[1732751148495,2.0574,242.76,242.73,9.74338919]
[1732751149391,4.6628,242.86,242.73,9.74338919]
[1732751149800,4.6628,242.86,242.7,68.06454107]
[1732751150298,9.74338919,242.84,242.7,65.82454107]